[Event "Titled Tuesday Blitz May 4 2021"]
[White "Suvorov, Alexander"]
[Black "Navalgund, Niranjan"]
[WhiteFideId "12977063"]
[BlackFideId "5030854"]
[WhiteElo "2221"]
[BlackElo "2290"]
[Result "1-0"]
[Round "11"]
[TimeControl "180+1"]
[Date "2021.05.04"]
[WhiteClock "0:00:04"]
[BlackClock "0:00:13"]

1. d4 {[%clk 0:03:00]}  Nf6 {[%clk 0:02:58]} 2. c4 {[%clk 0:03:00]}  Nc6 {[%clk 0:02:58]} 3. Nf3 {[%clk 0:02:58]}  e6 {[%clk 0:02:58]} 4. a3 {[%clk 0:02:55]}  d6 {[%clk 0:02:54]} 5. Nc3 {[%clk 0:02:55]}  g6 {[%clk 0:02:54]} 6. e4 {[%clk 0:02:53]}  Bg7 {[%clk 0:02:52]} 7. Be2 {[%clk 0:02:54]}  O-O {[%clk 0:02:52]} 8. Be3 {[%clk 0:02:50]}  Re8 {[%clk 0:02:53]} 9. h3 {[%clk 0:02:50]}  e5 {[%clk 0:02:52]} 10. d5 {[%clk 0:02:49]}  Nd4 {[%clk 0:02:51]} 11. O-O {[%clk 0:02:18]}  Nxe2+ {[%clk 0:02:46]} 12. Qxe2 {[%clk 0:02:19]}  Nh5 {[%clk 0:02:46]} 13. Ne1 {[%clk 0:01:50]}  Qh4 {[%clk 0:02:43]} 14. Nd3 {[%clk 0:01:45]}  f5 {[%clk 0:02:31]} 15. exf5 {[%clk 0:01:36]}  Bxf5 {[%clk 0:02:27]} 16. Ne1 {[%clk 0:01:02]}  e4 {[%clk 0:02:05]} 17. Qd2 {[%clk 0:00:43]}  Be5 {[%clk 0:01:59]} 18. Bg5 {[%clk 0:00:39]}  e3 {[%clk 0:01:56]} 19. Bxe3 {[%clk 0:00:34]}  Qxc4 {[%clk 0:01:47]} 20. Nf3 {[%clk 0:00:32]}  Bg7 {[%clk 0:01:45]} 21. Nd4 {[%clk 0:00:28]}  Rf8 {[%clk 0:01:39]} 22. Rac1 {[%clk 0:00:25]}  Qa6 {[%clk 0:01:38]} 23. Ncb5 {[%clk 0:00:23]}  Rac8 {[%clk 0:01:37]} 24. Nxc7 {[%clk 0:00:21]}  Qd3 {[%clk 0:01:31]} 25. Qxd3 {[%clk 0:00:22]}  Bxd3 {[%clk 0:01:32]} 26. Rfd1 {[%clk 0:00:22]}  Be4 {[%clk 0:01:32]} 27. Nce6 {[%clk 0:00:21]}  Rfe8 {[%clk 0:01:31]} 28. Nxg7 {[%clk 0:00:20]}  Nxg7 {[%clk 0:01:31]} 29. Nb5 {[%clk 0:00:17]}  Rxc1 {[%clk 0:01:30]} 30. Rxc1 {[%clk 0:00:18]}  Bxd5 {[%clk 0:01:26]} 31. Nxd6 {[%clk 0:00:18]}  Rd8 {[%clk 0:01:25]} 32. Nb5 {[%clk 0:00:16]}  a6 {[%clk 0:01:25]} 33. Nd4 {[%clk 0:00:12]}  Ne8 {[%clk 0:01:19]} 34. b4 {[%clk 0:00:06]}  b5 {[%clk 0:01:19]} 35. Nf3 {[%clk 0:00:05]}  Kf7 {[%clk 0:01:10]} 36. Ne5+ {[%clk 0:00:04]}  Ke6 {[%clk 0:01:10]} 37. Nd3 {[%clk 0:00:04]}  Kf7 {[%clk 0:01:03]} 38. Nc5 {[%clk 0:00:03]}  Rd6 {[%clk 0:01:03]} 39. Rd1 {[%clk 0:00:03]}  Nf6 {[%clk 0:01:01]} 40. Bf4 {[%clk 0:00:03]}  Rc6 {[%clk 0:01:01]} 41. Be5 {[%clk 0:00:03]}  Be6 {[%clk 0:01:00]} 42. Bxf6 {[%clk 0:00:03]}  Kxf6 {[%clk 0:01:01]} 43. Rd8 {[%clk 0:00:04]}  a5 {[%clk 0:01:00]} 44. Rb8 {[%clk 0:00:04]}  axb4 {[%clk 0:01:00]} 45. axb4 {[%clk 0:00:05]}  Bc4 {[%clk 0:01:01]} 46. g4 {[%clk 0:00:04]}  Kg5 {[%clk 0:00:58]} 47. Kg2 {[%clk 0:00:04]}  h5 {[%clk 0:00:57]} 48. Kg3 {[%clk 0:00:04]}  h4+ {[%clk 0:00:57]} 49. Kf3 {[%clk 0:00:05]}  Bd5+ {[%clk 0:00:57]} 50. Ke3 {[%clk 0:00:05]}  Bc4 {[%clk 0:00:54]} 51. f4+ {[%clk 0:00:05]}  Kf6 {[%clk 0:00:54]} 52. Kd4 {[%clk 0:00:05]}  Rd6+ {[%clk 0:00:54]} 53. Ke4 {[%clk 0:00:05]}  Rd1 {[%clk 0:00:55]} 54. Rb6+ {[%clk 0:00:04]}  Kg7 {[%clk 0:00:55]} 55. g5 {[%clk 0:00:04]}  Re1+ {[%clk 0:00:53]} 56. Kd4 {[%clk 0:00:05]}  Rh1 {[%clk 0:00:50]} 57. Rb7+ {[%clk 0:00:05]}  Kf8 {[%clk 0:00:50]} 58. Ke5 {[%clk 0:00:05]}  Rf1 {[%clk 0:00:48]} 59. Ne4 {[%clk 0:00:04]}  Re1 {[%clk 0:00:47]} 60. Kd4 {[%clk 0:00:02]}  Bf1 {[%clk 0:00:45]} 61. Rb6 {[%clk 0:00:01]}  Bxh3 {[%clk 0:00:44]} 62. Nf6 {[%clk 0:00:02]}  Bf5 {[%clk 0:00:43]} 63. Rxb5 {[%clk 0:00:02]}  h3 {[%clk 0:00:41]} 64. Rb8+ {[%clk 0:00:03]}  Kf7 {[%clk 0:00:41]} 65. Rh8 {[%clk 0:00:03]}  Rb1 {[%clk 0:00:39]} 66. Kc5 {[%clk 0:00:03]}  Rc1+ {[%clk 0:00:36]} 67. Kb6 {[%clk 0:00:03]}  Rc4 {[%clk 0:00:36]} 68. b5 {[%clk 0:00:03]}  Rxf4 {[%clk 0:00:36]} 69. Kc6 {[%clk 0:00:04]}  Rc4+ {[%clk 0:00:35]} 70. Kd6 {[%clk 0:00:04]}  Rb4 {[%clk 0:00:33]} 71. Kc5 {[%clk 0:00:04]}  Rb2 {[%clk 0:00:33]} 72. b6 {[%clk 0:00:04]}  h2 {[%clk 0:00:33]} 73. Kc6 {[%clk 0:00:05]}  Bc8 {[%clk 0:00:31]} 74. Kc7 {[%clk 0:00:05]}  Ba6 {[%clk 0:00:31]} 75. Rh7+ {[%clk 0:00:04]}  Ke6 {[%clk 0:00:30]} 76. Kc6 {[%clk 0:00:04]}  Kf5 {[%clk 0:00:30]} 77. Rh3 {[%clk 0:00:02]}  Kxg5 {[%clk 0:00:29]} 78. Nd5 {[%clk 0:00:02]}  Bf1 {[%clk 0:00:25]} 79. Rg3+ {[%clk 0:00:02]}  Kh4 {[%clk 0:00:25]} 80. Rxg6 {[%clk 0:00:02]}  Be2 {[%clk 0:00:21]} 81. Rh6+ {[%clk 0:00:02]}  Bh5 {[%clk 0:00:21]} 82. Nf4 {[%clk 0:00:03]}  Kg4 {[%clk 0:00:19]} 83. Rxh5 {[%clk 0:00:03]}  Kxf4 {[%clk 0:00:19]} 84. b7 {[%clk 0:00:03]}  Kg4 {[%clk 0:00:19]} 85. Rxh2 {[%clk 0:00:02]}  Rxh2 {[%clk 0:00:17]} 86. b8=Q {[%clk 0:00:02]}  Rc2+ {[%clk 0:00:16]} 87. Kd7 {[%clk 0:00:03]}  Rd2+ {[%clk 0:00:16]} 88. Ke6 {[%clk 0:00:03]}  Re2+ {[%clk 0:00:16]} 89. Kf6 {[%clk 0:00:04]}  Kf3 {[%clk 0:00:16]} 90. Qb3+ {[%clk 0:00:03]}  Re3 {[%clk 0:00:16]} 91. Qb1 {[%clk 0:00:04]}  Kf2 {[%clk 0:00:16]} 92. Kf5 {[%clk 0:00:04]}  Re1 {[%clk 0:00:16]} 93. Qc2+ {[%clk 0:00:04]}  Re2 {[%clk 0:00:16]} 94. Qc5+ {[%clk 0:00:04]}  Kf3 {[%clk 0:00:16]} 95. Qd5+ {[%clk 0:00:05]}  Ke3 {[%clk 0:00:16]} 96. Qc5+ {[%clk 0:00:04]}  Kf3 {[%clk 0:00:15]} 97. Qc3+ {[%clk 0:00:04]}  Re3 {[%clk 0:00:15]} 98. Qd2 {[%clk 0:00:05]}  Re2 {[%clk 0:00:15]} 99. Qd3+ {[%clk 0:00:05]}  Kf2 {[%clk 0:00:14]} 100. Kf4 {[%clk 0:00:05]}  Re1 {[%clk 0:00:13]} 101. Qf3+ {[%clk 0:00:04]}  Kg1 {[%clk 0:00:13]} 102. Kg3 {[%clk 0:00:05]}  Re2 {[%clk 0:00:13]} 103. Qxe2 {[%clk 0:00:04]} 1-0


[Site "https://www.chess.com"]

[Event "Titled Tuesday Blitz May 4 2021"]
[White "Sviridova, Vlada"]
[Black "Garcia Blanco, Omar"]
[WhiteFideId "24109606"]
[BlackFideId "2287153"]
[WhiteElo "2101"]
[BlackElo "2273"]
[Result "1-0"]
[Round "11"]
[TimeControl "180+1"]
[Date "2021.05.04"]
[WhiteClock "0:00:17"]
[BlackClock "0:00:02"]

1. d4 {[%clk 0:03:00]}  Nf6 {[%clk 0:02:47]} 2. c4 {[%clk 0:03:01]}  c5 {[%clk 0:02:47]} 3. d5 {[%clk 0:03:00]}  b5 {[%clk 0:02:47]} 4. cxb5 {[%clk 0:03:00]}  a6 {[%clk 0:02:47]} 5. bxa6 {[%clk 0:03:01]}  g6 {[%clk 0:02:47]} 6. Nc3 {[%clk 0:03:01]}  Bxa6 {[%clk 0:02:47]} 7. Nf3 {[%clk 0:03:02]}  Bg7 {[%clk 0:02:47]} 8. g3 {[%clk 0:03:03]}  d6 {[%clk 0:02:46]} 9. Bg2 {[%clk 0:03:04]}  Nbd7 {[%clk 0:02:47]} 10. Rb1 {[%clk 0:03:04]}  Nb6 {[%clk 0:02:47]} 11. b3 {[%clk 0:02:55]}  Bb7 {[%clk 0:02:39]} 12. Nh4 {[%clk 0:02:48]}  e6 {[%clk 0:02:26]} 13. dxe6 {[%clk 0:02:37]}  Bxg2 {[%clk 0:02:27]} 14. exf7+ {[%clk 0:02:36]}  Kxf7 {[%clk 0:02:28]} 15. Nxg2 {[%clk 0:02:36]}  d5 {[%clk 0:02:28]} 16. O-O {[%clk 0:02:29]}  d4 {[%clk 0:02:28]} 17. Nb5 {[%clk 0:01:58]}  Nbd5 {[%clk 0:02:17]} 18. a4 {[%clk 0:01:54]}  Qd7 {[%clk 0:02:16]} 19. Nf4 {[%clk 0:01:53]}  Nxf4 {[%clk 0:02:14]} 20. Bxf4 {[%clk 0:01:53]}  Nd5 {[%clk 0:02:08]} 21. Qd3 {[%clk 0:01:40]}  Nxf4 {[%clk 0:01:26]} 22. gxf4 {[%clk 0:01:40]}  Rhe8 {[%clk 0:01:25]} 23. Qc4+ {[%clk 0:01:08]}  Kf6 {[%clk 0:00:47]} 24. Qxc5 {[%clk 0:00:30]}  Qg4+ {[%clk 0:00:15]} 25. Kh1 {[%clk 0:00:29]}  Qxf4 {[%clk 0:00:16]} 26. Qxd4+ {[%clk 0:00:27]}  Qxd4 {[%clk 0:00:15]} 27. Nxd4 {[%clk 0:00:28]}  Kf7 {[%clk 0:00:15]} 28. e3 {[%clk 0:00:27]}  Red8 {[%clk 0:00:13]} 29. Rfd1 {[%clk 0:00:26]}  Rd6 {[%clk 0:00:04]} 30. Nb5 {[%clk 0:00:26]}  Rb6 {[%clk 0:00:03]} 31. Rd7+ {[%clk 0:00:25]}  Kf6 {[%clk 0:00:04]} 32. Rbd1 {[%clk 0:00:25]}  Bf8 {[%clk 0:00:03]} 33. f4 {[%clk 0:00:24]}  Re8 {[%clk 0:00:03]} 34. R1d3 {[%clk 0:00:23]}  Kf5 {[%clk 0:00:03]} 35. Kg2 {[%clk 0:00:23]}  Kg4 {[%clk 0:00:03]} 36. h3+ {[%clk 0:00:23]}  Kf5 {[%clk 0:00:03]} 37. Kf3 {[%clk 0:00:23]}  h5 {[%clk 0:00:03]} 38. R7d5+ {[%clk 0:00:21]}  Kf6 {[%clk 0:00:03]} 39. e4 {[%clk 0:00:22]}  Ke6 {[%clk 0:00:02]} 40. e5 {[%clk 0:00:22]}  Kf7 {[%clk 0:00:02]} 41. Rd7+ {[%clk 0:00:22]}  Kg8 {[%clk 0:00:02]} 42. R3d5 {[%clk 0:00:21]}  Rc8 {[%clk 0:00:02]} 43. Ke4 {[%clk 0:00:21]}  Rc1 {[%clk 0:00:02]} 44. Rd8 {[%clk 0:00:21]}  Re1+ {[%clk 0:00:03]} 45. Kd3 {[%clk 0:00:21]}  Rh1 {[%clk 0:00:02]} 46. Ke4 {[%clk 0:00:20]}  Rxh3 {[%clk 0:00:03]} 47. Rc8 {[%clk 0:00:18]}  Kf7 {[%clk 0:00:03]} 48. Rdd8 {[%clk 0:00:19]}  Be7 {[%clk 0:00:03]} 49. Rd7 {[%clk 0:00:19]}  Ke6 {[%clk 0:00:03]} 50. Rcc7 {[%clk 0:00:18]}  Bf8 {[%clk 0:00:02]} 51. Rf7 {[%clk 0:00:18]}  Bc5 {[%clk 0:00:02]} 52. Rxc5 {[%clk 0:00:17]}  Kxf7 {[%clk 0:00:02]} 53. Rc7+ {[%clk 0:00:17]}  Ke6 {[%clk 0:00:02]} 54. Nd4# {[%clk 0:00:17]} 1-0


[Site "https://www.chess.com"]

[Event "Titled Tuesday Blitz May 4 2021"]
[White "Tari, Aryan"]
[Black "Jarovinsky, Alexey"]
[WhiteFideId "1510045"]
[BlackFideId "14115131"]
[WhiteElo "2656"]
[BlackElo "2446"]
[Result "1/2-1/2"]
[Round "11"]
[TimeControl "180+1"]
[Date "2021.05.04"]
[WhiteClock "0:00:10"]
[BlackClock "0:00:03"]

1. e4 {[%clk 0:03:00]}  c6 {[%clk 0:02:58]} 2. d4 {[%clk 0:03:00]}  d5 {[%clk 0:02:58]} 3. exd5 {[%clk 0:03:01]}  cxd5 {[%clk 0:02:58]} 4. Bd3 {[%clk 0:03:02]}  Nc6 {[%clk 0:02:57]} 5. c3 {[%clk 0:03:02]}  Nf6 {[%clk 0:02:55]} 6. h3 {[%clk 0:03:00]}  g6 {[%clk 0:02:53]} 7. Qc2 {[%clk 0:02:55]}  Bd7 {[%clk 0:02:35]} 8. Nf3 {[%clk 0:02:47]}  Qc8 {[%clk 0:02:15]} 9. O-O {[%clk 0:02:39]}  Bf5 {[%clk 0:02:14]} 10. Re1 {[%clk 0:02:32]}  Bg7 {[%clk 0:02:04]} 11. Bf4 {[%clk 0:02:29]}  O-O {[%clk 0:02:01]} 12. Bxf5 {[%clk 0:02:28]}  Qxf5 {[%clk 0:01:58]} 13. Qc1 {[%clk 0:01:56]}  Rac8 {[%clk 0:01:43]} 14. a3 {[%clk 0:01:56]}  Na5 {[%clk 0:01:38]} 15. Ra2 {[%clk 0:01:50]}  Nb3 {[%clk 0:01:31]} 16. Qd1 {[%clk 0:01:50]}  Qxf4 {[%clk 0:01:25]} 17. Qxb3 {[%clk 0:01:50]}  Rc7 {[%clk 0:01:18]} 18. Nbd2 {[%clk 0:01:48]}  Ne4 {[%clk 0:01:09]} 19. Nf1 {[%clk 0:01:24]}  e6 {[%clk 0:01:05]} 20. Raa1 {[%clk 0:01:24]}  g5 {[%clk 0:00:56]} 21. Qc2 {[%clk 0:01:05]}  h5 {[%clk 0:00:53]} 22. Ne5 {[%clk 0:00:52]}  Bxe5 {[%clk 0:00:43]} 23. dxe5 {[%clk 0:00:53]}  g4 {[%clk 0:00:36]} 24. hxg4 {[%clk 0:00:44]}  hxg4 {[%clk 0:00:37]} 25. Qe2 {[%clk 0:00:44]}  f5 {[%clk 0:00:26]} 26. exf6 {[%clk 0:00:34]}  Rxf6 {[%clk 0:00:24]} 27. g3 {[%clk 0:00:32]}  Qxf2+ {[%clk 0:00:14]} 28. Qxf2 {[%clk 0:00:33]}  Nxf2 {[%clk 0:00:15]} 29. Ne3 {[%clk 0:00:31]}  Ne4 {[%clk 0:00:11]} 30. Rf1 {[%clk 0:00:19]}  Rcf7 {[%clk 0:00:07]} 31. Nxg4 {[%clk 0:00:09]}  Rxf1+ {[%clk 0:00:05]} 32. Rxf1 {[%clk 0:00:10]}  Rxf1+ {[%clk 0:00:05]} 33. Kxf1 {[%clk 0:00:11]}  Nxg3+ {[%clk 0:00:05]} 34. Kf2 {[%clk 0:00:12]}  Ne4+ {[%clk 0:00:05]} 35. Ke3 {[%clk 0:00:12]}  Kf7 {[%clk 0:00:06]} 36. Kd4 {[%clk 0:00:13]}  Ke7 {[%clk 0:00:06]} 37. c4 {[%clk 0:00:13]}  Kd6 {[%clk 0:00:04]} 38. Ne5 {[%clk 0:00:12]}  Nc5 {[%clk 0:00:02]} 39. Nf7+ {[%clk 0:00:12]}  Kc6 {[%clk 0:00:02]} 40. Ne5+ {[%clk 0:00:12]}  Kd6 {[%clk 0:00:02]} 41. Nf7+ {[%clk 0:00:12]}  Kc6 {[%clk 0:00:03]} 42. Nd8+ {[%clk 0:00:12]}  Kd6 {[%clk 0:00:03]} 43. Nf7+ {[%clk 0:00:10]} 1/2-1/2


[Site "https://www.chess.com"]

[Event "Titled Tuesday Blitz May 4 2021"]
[White "Triapishko, Alexandr"]
[Black "Shimelkov, Vasiliy"]
[WhiteFideId "14122286"]
[BlackFideId "13701630"]
[WhiteElo "2490"]
[BlackElo "2073"]
[Result "1-0"]
[Round "11"]
[TimeControl "180+1"]
[Date "2021.05.04"]
[WhiteClock "0:00:48"]
[BlackClock "0:00:02"]

1. d4 {[%clk 0:02:47]}  d5 {[%clk 0:02:59]} 2. c4 {[%clk 0:02:45]}  e6 {[%clk 0:03:00]} 3. Nf3 {[%clk 0:02:45]}  Nf6 {[%clk 0:02:59]} 4. Nc3 {[%clk 0:02:44]}  Be7 {[%clk 0:02:59]} 5. Bf4 {[%clk 0:02:42]}  O-O {[%clk 0:02:58]} 6. e3 {[%clk 0:02:42]}  b6 {[%clk 0:02:58]} 7. Rc1 {[%clk 0:02:37]}  Bb7 {[%clk 0:02:57]} 8. cxd5 {[%clk 0:02:37]}  exd5 {[%clk 0:02:58]} 9. Bd3 {[%clk 0:02:31]}  c5 {[%clk 0:02:57]} 10. O-O {[%clk 0:02:31]}  Na6 {[%clk 0:02:57]} 11. Ne5 {[%clk 0:02:30]}  Nc7 {[%clk 0:02:56]} 12. Bg3 {[%clk 0:01:57]}  Ne6 {[%clk 0:02:53]} 13. Ne2 {[%clk 0:01:57]}  Ne4 {[%clk 0:02:47]} 14. Bxe4 {[%clk 0:01:50]}  dxe4 {[%clk 0:02:46]} 15. dxc5 {[%clk 0:01:50]}  Nxc5 {[%clk 0:02:43]} 16. Nd4 {[%clk 0:01:42]}  Bf6 {[%clk 0:02:31]} 17. b4 {[%clk 0:01:27]}  Bxe5 {[%clk 0:01:56]} 18. bxc5 {[%clk 0:01:27]}  Bxg3 {[%clk 0:01:55]} 19. hxg3 {[%clk 0:01:27]}  bxc5 {[%clk 0:01:52]} 20. Rxc5 {[%clk 0:01:28]}  Ba6 {[%clk 0:01:51]} 21. Re1 {[%clk 0:01:28]}  Rc8 {[%clk 0:01:43]} 22. Rxc8 {[%clk 0:01:25]}  Qxc8 {[%clk 0:01:40]} 23. Qd2 {[%clk 0:01:24]}  h6 {[%clk 0:01:32]} 24. Rc1 {[%clk 0:01:20]}  Qd7 {[%clk 0:01:27]} 25. Qa5 {[%clk 0:01:20]}  Bd3 {[%clk 0:01:19]} 26. Qe5 {[%clk 0:01:12]}  Rc8 {[%clk 0:01:08]} 27. Rxc8+ {[%clk 0:01:11]}  Qxc8 {[%clk 0:01:08]} 28. Nf5 {[%clk 0:01:11]}  Qf8 {[%clk 0:00:37]} 29. Ne7+ {[%clk 0:01:07]}  Kh8 {[%clk 0:00:35]} 30. g4 {[%clk 0:01:07]}  Bc2 {[%clk 0:00:21]} 31. g5 {[%clk 0:01:04]}  h5 {[%clk 0:00:15]} 32. g6 {[%clk 0:01:02]}  Bd1 {[%clk 0:00:15]} 33. f3 {[%clk 0:00:59]}  f5 {[%clk 0:00:12]} 34. Qh2 {[%clk 0:00:49]}  Bxf3 {[%clk 0:00:04]} 35. gxf3 {[%clk 0:00:48]}  Qxe7 {[%clk 0:00:02]} 36. Qxh5+ {[%clk 0:00:48]} 1-0


[Site "https://www.chess.com"]

[Event "Titled Tuesday Blitz May 4 2021"]
[White "Trost, Edvin"]
[Black "Zhukov, Anton"]
[WhiteFideId "1729519"]
[BlackFideId "34187534"]
[WhiteElo "2028"]
[BlackElo "2172"]
[Result "1-0"]
[Round "11"]
[TimeControl "180+1"]
[Date "2021.05.04"]
[WhiteClock "0:02:06"]
[BlackClock "0:01:48"]

1. d4 {[%clk 0:03:00]}  Nf6 {[%clk 0:02:59]} 2. Nf3 {[%clk 0:02:58]}  e6 {[%clk 0:02:59]} 3. h4 {[%clk 0:02:52]}  c5 {[%clk 0:02:58]} 4. c3 {[%clk 0:02:51]}  Nc6 {[%clk 0:02:57]} 5. h5 {[%clk 0:02:51]}  h6 {[%clk 0:02:58]} 6. g3 {[%clk 0:02:52]}  b6 {[%clk 0:02:57]} 7. Bg2 {[%clk 0:02:50]}  Bb7 {[%clk 0:02:57]} 8. Bf4 {[%clk 0:02:49]}  Be7 {[%clk 0:02:53]} 9. Nbd2 {[%clk 0:02:49]}  d5 {[%clk 0:02:53]} 10. Ne5 {[%clk 0:02:47]}  Nd7 {[%clk 0:02:48]} 11. Nxc6 {[%clk 0:02:45]}  Bxc6 {[%clk 0:02:49]} 12. e4 {[%clk 0:02:44]}  dxe4 {[%clk 0:02:45]} 13. Nxe4 {[%clk 0:02:45]}  Qc8 {[%clk 0:02:44]} 14. O-O {[%clk 0:02:38]}  Nf6 {[%clk 0:02:43]} 15. Qe2 {[%clk 0:02:35]}  O-O {[%clk 0:02:35]} 16. Rad1 {[%clk 0:02:31]}  cxd4 {[%clk 0:02:33]} 17. Rxd4 {[%clk 0:02:32]}  Nxe4 {[%clk 0:02:32]} 18. Bxe4 {[%clk 0:02:32]}  Bxe4 {[%clk 0:02:33]} 19. Qxe4 {[%clk 0:02:33]}  Bf6 {[%clk 0:02:33]} 20. Rd3 {[%clk 0:02:33]}  Qc5 {[%clk 0:02:30]} 21. Bd6 {[%clk 0:02:29]}  Qxh5 {[%clk 0:02:27]} 22. Bxf8 {[%clk 0:02:29]}  Rxf8 {[%clk 0:02:27]} 23. Rd7 {[%clk 0:02:27]}  a5 {[%clk 0:02:17]} 24. Kg2 {[%clk 0:02:25]}  Rc8 {[%clk 0:02:14]} 25. Rfd1 {[%clk 0:02:15]}  Qb5 {[%clk 0:02:10]} 26. R1d2 {[%clk 0:02:13]}  Bg5 {[%clk 0:02:04]} 27. Qb7 {[%clk 0:02:12]}  Rc5 {[%clk 0:01:53]} 28. Rxf7 {[%clk 0:02:09]}  Bf6 {[%clk 0:01:48]} 29. Rd8+ {[%clk 0:02:06]} 1-0


[Site "https://www.chess.com"]

[Event "Titled Tuesday Blitz May 4 2021"]
[White "Urazayev, Arystanbek"]
[Black "Yang, Kaiqi"]
[WhiteFideId "13709810"]
[BlackFideId "8604398"]
[WhiteElo "2321"]
[BlackElo "2373"]
[Result "0-1"]
[Round "11"]
[TimeControl "180+1"]
[Date "2021.05.04"]
[WhiteClock "0:00:01"]
[BlackClock "0:00:03"]

1. e4 {[%clk 0:03:00]}  c5 {[%clk 0:02:58]} 2. Nf3 {[%clk 0:03:00]}  d6 {[%clk 0:02:58]} 3. d4 {[%clk 0:03:01]}  cxd4 {[%clk 0:02:58]} 4. Nxd4 {[%clk 0:03:01]}  Nf6 {[%clk 0:02:58]} 5. Nc3 {[%clk 0:03:02]}  g6 {[%clk 0:02:58]} 6. Be3 {[%clk 0:02:59]}  a6 {[%clk 0:02:58]} 7. f3 {[%clk 0:02:57]}  b5 {[%clk 0:02:58]} 8. Qd2 {[%clk 0:02:57]}  Bb7 {[%clk 0:02:57]} 9. O-O-O {[%clk 0:02:56]}  Nbd7 {[%clk 0:02:57]} 10. Kb1 {[%clk 0:02:55]}  h5 {[%clk 0:02:56]} 11. Bd3 {[%clk 0:02:38]}  b4 {[%clk 0:02:39]} 12. Nd5 {[%clk 0:02:30]}  Bxd5 {[%clk 0:02:25]} 13. exd5 {[%clk 0:02:29]}  Nxd5 {[%clk 0:02:25]} 14. Ne6 {[%clk 0:01:47]}  Qa5 {[%clk 0:01:46]} 15. Bd4 {[%clk 0:01:47]}  Bh6 {[%clk 0:01:16]} 16. Qe1 {[%clk 0:01:36]}  N7f6 {[%clk 0:01:07]} 17. Bc4 {[%clk 0:01:07]}  fxe6 {[%clk 0:00:46]} 18. Qxe6 {[%clk 0:00:52]}  Rf8 {[%clk 0:00:29]} 19. Rhe1 {[%clk 0:00:48]}  Qc7 {[%clk 0:00:13]} 20. Bxd5 {[%clk 0:00:25]}  Nxd5 {[%clk 0:00:14]} 21. Qxg6+ {[%clk 0:00:24]}  Rf7 {[%clk 0:00:11]} 22. Qxh6 {[%clk 0:00:21]}  Rc8 {[%clk 0:00:10]} 23. Rd2 {[%clk 0:00:17]}  Nc3+ {[%clk 0:00:08]} 24. Kc1 {[%clk 0:00:09]}  Nxa2+ {[%clk 0:00:08]} 25. Kd1 {[%clk 0:00:09]}  Nc3+ {[%clk 0:00:08]} 26. bxc3 {[%clk 0:00:09]}  bxc3 {[%clk 0:00:09]} 27. Rde2 {[%clk 0:00:09]}  Qc4 {[%clk 0:00:07]} 28. Qe3 {[%clk 0:00:04]}  Rb8 {[%clk 0:00:05]} 29. Bb6 {[%clk 0:00:01]}  Qd5+ {[%clk 0:00:03]} 0-1


[Site "https://www.chess.com"]

[Event "Titled Tuesday Blitz May 4 2021"]
[White "Valdes Romero, Leonardo"]
[Black "Volkov, Maksim"]
[WhiteFideId "6500331"]
[BlackFideId "54123070"]
[WhiteElo "2497"]
[BlackElo "2113"]
[Result "1-0"]
[Round "11"]
[TimeControl "180+1"]
[Date "2021.05.04"]
[WhiteClock "0:01:39"]
[BlackClock "0:01:18"]

1. e4 {[%clk 0:03:00]}  c5 {[%clk 0:02:58]} 2. Nf3 {[%clk 0:02:59]}  e6 {[%clk 0:02:58]} 3. c3 {[%clk 0:02:52]}  d5 {[%clk 0:02:57]} 4. exd5 {[%clk 0:02:51]}  exd5 {[%clk 0:02:57]} 5. Bb5+ {[%clk 0:02:51]}  Bd7 {[%clk 0:02:56]} 6. Qe2+ {[%clk 0:02:47]}  Qe7 {[%clk 0:02:51]} 7. Bxd7+ {[%clk 0:02:40]}  Nxd7 {[%clk 0:02:50]} 8. Qxe7+ {[%clk 0:02:35]}  Bxe7 {[%clk 0:02:50]} 9. d4 {[%clk 0:02:34]}  Ngf6 {[%clk 0:02:43]} 10. O-O {[%clk 0:02:34]}  Ne4 {[%clk 0:02:43]} 11. Be3 {[%clk 0:02:30]}  O-O {[%clk 0:02:41]} 12. Nbd2 {[%clk 0:02:27]}  f5 {[%clk 0:02:41]} 13. dxc5 {[%clk 0:02:24]}  Ndxc5 {[%clk 0:02:41]} 14. Nb3 {[%clk 0:02:12]}  Nd3 {[%clk 0:02:34]} 15. Rab1 {[%clk 0:02:12]}  g5 {[%clk 0:02:26]} 16. Rfd1 {[%clk 0:02:11]}  g4 {[%clk 0:02:06]} 17. Rxd3 {[%clk 0:02:09]}  gxf3 {[%clk 0:02:06]} 18. gxf3 {[%clk 0:02:09]}  Nf6 {[%clk 0:02:04]} 19. Bg5 {[%clk 0:02:06]}  Rad8 {[%clk 0:01:58]} 20. Rbd1 {[%clk 0:02:05]}  Kf7 {[%clk 0:01:44]} 21. Bxf6 {[%clk 0:02:04]}  Kxf6 {[%clk 0:01:44]} 22. Rxd5 {[%clk 0:02:04]}  Rg8+ {[%clk 0:01:43]} 23. Kf1 {[%clk 0:02:03]}  Rc8 {[%clk 0:01:42]} 24. Nd4 {[%clk 0:01:59]}  Rg5 {[%clk 0:01:39]} 25. Re1 {[%clk 0:01:54]}  Rh5 {[%clk 0:01:29]} 26. Re6+ {[%clk 0:01:51]}  Kf7 {[%clk 0:01:29]} 27. Rd7 {[%clk 0:01:49]}  Re8 {[%clk 0:01:29]} 28. Rxb7 {[%clk 0:01:45]}  Rxh2 {[%clk 0:01:22]} 29. Rxa7 {[%clk 0:01:46]}  Rh4 {[%clk 0:01:21]} 30. Re5 {[%clk 0:01:42]}  Kg6 {[%clk 0:01:18]} 31. Rexe7 {[%clk 0:01:39]} 1-0


[Site "https://www.chess.com"]